[Event "2nd Serbia Open Masters 2022"]
[Site "Novi Sad"]
[Date "2022.07.02"]
[Round "5.15"]
[White "Harsha Bharathakoti"]
[Black "Kilic, Eray"]
[Result "1-0"]
[ECO "B92"]
[WhiteElo "2547"]
[BlackElo "2192"]
[Annotator "TA"]
[PlyCount "81"]
[EventDate "2022.06.28"]
[EventType "swiss"]
[EventCountry "SRB"]
[SourceTitle "playchess.com"]
[Source "ChessBase"]
[SourceQuality "1"]
[TimeControl "40/5400+30:900+30"]

{[%evp 25,81,19,28,31,44,38,50,57,117,92,81,89,97,111,120,126,140,155,146,147,137,136,154,116,100,110,284,291,321,307,322,333,312,323,570,593,700,675,1398,1325,5160,5152,5111,5055,29985,29986,29986,29987,29987,29988,29988,29989,29989,29990,29991,29992,29992,29993]} 1. e4 {[%emt 0:02:18]} c5 {[%emt 0:00:02]} 2. Nf3 {[%emt 0:00:10]} d6 {[%emt 0:00:04]} 3. d4 {[%emt 0:00:07]} cxd4 {[%emt 0:00:04]} 4. Nxd4 {[%emt 0:00:04]} Nf6 {[%emt 0:00:04]} 5. Nc3 {[%emt 0:00:05]} a6 {[%emt 0:00:04]} 6. Be2 {[%emt 0:00:12]} e5 {[%emt 0:01:27]} 7. Nb3 {[%emt 0:00:32]} Be6 {[%emt 0:00:25]} 8. Be3 {[%emt 0:00:16]} Be7 {[%emt 0:00:52]} 9. Nd5 {[%emt 0:00:05]} Nxd5 {[%emt 0:00:11]} 10. exd5 {[%emt 0:00:04]} Bf5 {[%emt 0:00:24]} 11. Qd2 {[%emt 0:01:58]} Nd7 {[%emt 0:01:16]} 12. O-O {[%emt 0:07:56]} O-O {[%emt 0:02:07]} 13. Na5 {[%emt 0:10:29]} Qc7 {[%emt 0:11:51]} 14. c4 {[%emt 0:01:46][%cal Bc2c4,Bc4c5][%mdl 32] B92: Sicilian Najdorf: 6 Be2.} Bg6 {[%emt 0:06:46]} 15. b4 {[%emt 0:07:49]} f5 {[%emt 0:04:30] White must now prevent ...f4.} 16. f4 {[%emt 0:00:08] White is slightly better.} Bf6 {[%emt 0:14:30]} ({Black should play} 16... Rad8 $14) 17. Rac1 {[%emt 0:08:10]} exf4 {[%emt 0:10:27]} 18. Bxf4 {[%emt 0:02:18][%cal Oc4c5]} Be5 {[%emt 0:06:01]} 19. c5 {[%emt 0:17:45] [#]} Bxf4 $146 {[%emt 0:07:08]} ({Predecessor:} 19... dxc5 20. Bxe5 Qxe5 21. bxc5 Nf6 22. Nxb7 Ne4 23. Qb4 Bf7 24. Rfd1 Ng5 25. Qd2 Ne4 {1-0 (33) Huda,M (2278)-Paulet,I (2241) Predeal 2007}) 20. Qxf4 {[%emt 0:04:53]} Rae8 {[%emt 0:02:59] [#]} 21. Bf3 {[%emt 0:06:30]} Ne5 {[%emt 0:02:28]} 22. Nc4 {[%emt 0:07:10]} Nxc4 {[%emt 0:06:33]} 23. Qxc4 {[%emt 0:00:27]} Bf7 {[%emt 0:02:11]} 24. Rfe1 {[%emt 0:03:16]} g5 {[%emt 0:06:10]} 25. g3 {[%emt 0:02:06]} dxc5 $2 {[%emt 0:01:47] Black cannot hold the game after this.} (25... f4 $16) 26. bxc5 $18 {[%emt 0:06:31]} ({Less strong is} 26. Qxc5 Qd7 $16) 26... Rxe1+ {[%emt 0:02:05]} 27. Rxe1 {[%emt 0:00:03]} Rc8 {[%emt 0:00:04]} 28. Rc1 {[%emt 0:01:12]} Qa5 {[%emt 0:01:51]} 29. Qc3 {[%emt 0:03:15]} Qxa2 {[%emt 0:04:43]} (29... Qxc3 30. Rxc3 Be8) 30. d6 {[%emt 0:00:04][%cal Bd5d6,Bd6d7][%mdl 32]} g4 {[%emt 0:00:26]} 31. Bxb7 {[%emt 0:00:50]} Rb8 {[%emt 0:01:19] [#]} 32. d7 $1 {[%emt 0:01:38] Intending Bc8 and mate.} Rd8 {[%emt 0:00:11]} (32... Rf8 33. Rd1) 33. c6 {[%emt 0:05:44][%cal Bc5c6,Bc6c7][%mdl 32] White threatens c7 and mate.} Bd5 {[%emt 0:00:18]} 34. Qc2 {[%emt 0:00:44] Active counter play!} Qa3 {[%emt 0:00:01]} 35. c7 {[%emt 0:00:43] White mates.} Qe3+ {[%emt 0:00:10]} 36. Kf1 {[%emt 0:00:01]} Qf3+ {[%emt 0:00:18]} 37. Qf2 {[%emt 0:00:14]} Qh1+ {[%emt 0:00:34]} 38. Ke2 {[%emt 0:00:02]} Qe4+ {[%emt 0:05:48]} 39. Qe3 {[%emt 0:00:12]} Qg2+ {[%emt 0:00:08]} 40. Ke1 {[%emt 0:00:00]} Qh1+ {[%emt 0:00:00]} 41. Kd2 {[%emt 0:01:15] Weighted Error Value: White=0.03 (flawless) /Black=0.55} 1-0

[Event "2nd Serbia Open Masters 2022"]
[Site "Novi Sad"]
[Date "2022.07.02"]
[Round "5.16"]
[White "Perunovic, Miodrag"]
[Black "Perunovic, Milos"]
[Result "1/2-1/2"]
[ECO "C67"]
[WhiteElo "2413"]
[BlackElo "2544"]
[Annotator "TA"]
[PlyCount "37"]
[EventDate "2022.06.28"]
[EventType "swiss"]
[EventCountry "SRB"]
[SourceTitle "playchess.com"]
[Source "ChessBase"]
[SourceQuality "1"]
[TimeControl "40/5400+30:900+30"]

{[%evp 20,22,25,16,23]} 1. e4 {[%emt 0:01:35]} e5 {[%emt 0:00:06]} 2. Nf3 {[%emt 0:00:11]} Nc6 {[%emt 0:00:09]} 3. Bb5 {[%emt 0:00:08]} Nf6 {[%emt 0:00:06]} 4. O-O {[%emt 0:00:43][%cal Bh1f1,Bf1e1,Be1e5][%mdl 32]} Nxe4 {[%emt 0:00:13]} 5. Re1 {[%emt 0:00:08]} Nd6 {[%emt 0:00:10]} 6. Nxe5 {[%emt 0:00:10]} Nxe5 {[%emt 0:00:13]} 7. Rxe5+ {[%emt 0:00:03]} Be7 {[%emt 0:00:07]} 8. Bf1 {[%emt 0:00:07]} O-O {[%emt 0:00:23]} 9. d4 {[%emt 0:00:07]} Bf6 {[%emt 0:00:12]} 10. Re1 {[%emt 0:00:03]} Nf5 {[%emt 0:00:11]} 11. c3 {[%emt 0:00:08]} d5 {[%emt 0:00:04] [#] An uneventful encounter. C67: Ruy Lopez: Berlin Defence: 4 0-0 Nxe4.} {Predecessor:} 12. Bf4 $146 c6 13. Nd2 Bg5 14. Bxg5 Qxg5 15. Nf3 Qd8 16. Ne5 Nd6 17. Bd3 Bf5 18. Bxf5 Nxf5 19. Qf3 {½-½ (33) Kamsky,G (2657)-Martirosyan,H (2633) Chess.com INT 2022} 1/2-1/2

[Event "2nd Serbia Open Masters 2022"]
[Site "Novi Sad"]
[Date "2022.07.02"]
[Round "5.17"]
[White "Zanan, Evgeny"]
[Black "Ohanyan, Emin"]
[Result "1/2-1/2"]
[ECO "E36"]
[WhiteElo "2534"]
[BlackElo "2366"]
[Annotator "TA"]
[PlyCount "85"]
[EventDate "2022.06.28"]
[EventType "swiss"]
[EventCountry "SRB"]
[SourceTitle "playchess.com"]
[Source "ChessBase"]
[SourceQuality "1"]
[TimeControl "40/5400+30:900+30"]

{[%evp 12,85,6,16,14,7,14,13,11,16,17,3,38,0,0,0,0,0,0,0,0,-19,-10,-6,-7,-23,-19,-27,-16,-61,-60,-64,-55,-58,-67,-65,-65,-57,-26,-35,-28,-50,-10,-17,-23,-26,-13,-42,-42,-55,0,0,0,0,0,0,0,0,0,0,0,0,0,0,0,0,0,0,0,0,0,0,0,0,0,0]} 1. d4 {[%emt 0:07:17]} Nf6 {[%emt 0:00:07]} 2. c4 {[%emt 0:00:04]} e6 {[%emt 0:00:04]} 3. Nc3 {[%emt 0:00:27]} Bb4 {[%emt 0:00:06]} 4. Qc2 {[%emt 0:00:04]} d5 {[%emt 0:00:04]} 5. a3 {[%emt 0:00:13]} Bxc3+ {[%emt 0:00:05]} 6. Qxc3 {[%emt 0:00:03]} O-O {[%emt 1:33:04]} 7. Nf3 {[%emt 0:00:09]} b6 {[%emt 0:00:00] E36: Nimzo-Indian: Classical: 4...d5 5 a3.} 8. Bg5 {[%emt 0:11:43]} dxc4 {[%emt 0:00:00]} 9. Qxc4 {[%emt 0:00:04]} Ba6 {[%emt 0:00:00]} 10. Qa4 {[%emt 0:00:05]} h6 $1 {[%emt 0:00:00][%mdl 4] is more profitable than 10...c5 at the moment.} 11. Bh4 {[%emt 0:09:08]} c5 {[%emt 0:00:00]} 12. Rd1 {[%emt 0:08:56][%cal Ba1d1,Bd1d2,Bd2c2][%mdl 32]} b5 {[%emt 0:00:00]} 13. Qc2 {[%emt 0:19:14]} Qa5+ {[%emt 0:00:00]} 14. Qd2 {[%emt 0:04:36]} Qxd2+ {[%emt 0:00:00] [#]} 15. Rxd2 $146 {[%emt 0:02:37]} ({Predecessor:} 15. Nxd2 cxd4 16. Nf3 b4 17. axb4 Nc6 18. Nxd4 Rfc8 19. Bxf6 gxf6 20. e3 Bxf1 21. Rxf1 {½-½ (74) Dreev,A (2623)-Le,Q (2709) Chess.com INT 2022}) 15... Ne4 {[%emt 0:00:00]} (15... g5 $5 16. Bg3 c4 $11) 16. Rc2 {[%emt 0:07:52]} c4 {[%emt 0:00:00]} 17. e3 {[%emt 0:00:43]} Bb7 {[%emt 0:00:00]} 18. Be2 {[%emt 0:04:04]} Nd7 {[%emt 0:00:00]} 19. O-O {[%emt 0:00:23]} Rfc8 {[%emt 0:00:00]} (19... g5 $5 20. Bg3 Nxg3 21. hxg3 Be4 $11) 20. Rfc1 {[%emt 0:09:50]} g5 {[%emt 0:00:00]} 21. Bg3 {[%emt 0:00:06]} Nxg3 {[%emt 0:00:00]} 22. hxg3 {[%emt 0:00:05]} Be4 {[%emt 0:00:00]} 23. Rd2 {[%emt 0:03:25][%cal Oa3a4]} Nb6 {[%emt 0:00:00]} 24. Ne5 {[%emt 0:04:33]} a5 {[%emt 0:00:00]} (24... Kg7 {seems wilder.} 25. Bh5 f6 26. f3 Bf5) 25. f3 {[%emt 0:00:12]} Bh7 {[%emt 0:00:00]} 26. e4 {[%emt 0:00:31][%cal Be3e4,Be4d5,Bd5d6,Bd6d7][%mdl 32]} h5 {[%emt 0:01:36] [#] Hoping for ...f6.} 27. d5 {[%emt 0:00:22]} exd5 {[%emt 0:03:16]} 28. exd5 {[%emt 0:00:01]} Rc5 {[%emt 0:00:24]} 29. f4 {[%emt 0:05:47]} (29. Nc6 $5 {[%cal Rb2b4]} Kg7 30. Rcd1 $11) 29... g4 {[%emt 0:01:53]} (29... Nxd5 $2 30. Bf3 (30. Bxh5 Ra7 $11) 30... c3 31. bxc3 (31. Rxd5 Rxd5 32. Rxc3 Rad8 $11) 31... Nxc3 32. Bxa8 $18) (29... Rxd5 $2 30. Rxd5 Nxd5 31. Bf3 $18 (31. Bxh5 Ra7 $16)) 30. d6 {[%emt 0:00:01]} f6 {[%emt 0:01:29]} (30... Bf5 $15) 31. b4 $11 {[%emt 0:01:36] The position is equal.} axb4 {[%emt 0:01:30]} 32. axb4 {[%emt 0:00:01]} Rcc8 {[%emt 0:00:59]} 33. d7 {[%emt 0:00:04]} Rd8 {[%emt 0:00:10]} 34. Rd6 {[%emt 0:01:40][%csl LRb6,LRf6]} fxe5 {[%emt 0:00:19]} 35. Rxb6 {[%emt 0:00:03]} Ra2 {[%emt 0:02:21]} ({Don't do} 35... Rxd7 36. Rxb5 Bd3 37. Rxe5 $16) 36. Bf1 {[%emt 0:00:39]} Rxd7 {[%emt 0:00:27]} 37. Rxb5 {[%emt 0:00:36]} Bd3 {[%emt 0:00:15] White must now prevent ...e4.} 38. Rxe5 {[%emt 0:01:24]} Bxf1 {[%emt 0:00:19]} 39. Kxf1 {[%emt 0:00:24]} Rdd2 {[%emt 0:00:34]} 40. Rxc4 {[%emt 0:00:00]} Rf2+ {[%emt 0:00:00]} 41. Ke1 {[%emt 0:00:30] [#] Threatens to win with Rc7.} Rxg2 {[%emt 0:00:58][%cal Rg2g1]} 42. Rc8+ {[%emt 0:00:17]} Kf7 {[%emt 0:00:04][%cal Rg2g1]} 43. Rc7+ {[%emt 0:00:06] Weighted Error Value: White=0.05 (flawless) /Black=0.05 (flawless)} 1/2-1/2

[Event "2nd Serbia Open Masters 2022"]
[Site "Novi Sad"]
[Date "2022.07.02"]
[Round "5.18"]
[White "Amartuvshin, Ganzorig"]
[Black "Budisavljevic, Luka"]
[Result "0-1"]
[ECO "D37"]
[WhiteElo "2350"]
[BlackElo "2507"]
[Annotator "TA"]
[PlyCount "88"]
[EventDate "2022.06.28"]
[EventType "swiss"]
[EventCountry "SRB"]
[SourceTitle "playchess.com"]
[Source "ChessBase"]
[SourceQuality "1"]
[TimeControl "40/5400+30:900+30"]

{[%evp 9,88,22,30,24,29,26,24,24,31,0,0,0,9,5,0,0,0,0,0,0,0,8,0,-8,14,0,4,-13,-4,-13,-12,-22,0,-8,0,0,0,0,0,-90,-90,-163,-166,-210,-177,-307,-291,-403,-361,-344,-343,-340,-308,-391,-277,-287,-273,-575,-559,-512,-439,-29963,-29964,-29961,-29961,-5122,-5122,-29978,-29979,-29976,-29978,-29980,-29981,-29981,-29982,-29982,-29983,-29976,-29978,-29973,-11663]} 1. d4 {[%emt 0:00:03]} d5 {[%emt 0:01:50]} 2. c4 {[%emt 0:00:06]} e6 {[%emt 0:00:06]} 3. Nf3 {[%emt 0:00:06]} Nf6 {[%emt 0:00:07]} 4. Nc3 {[%emt 0:00:07]} a6 {[%emt 0:00:21]} 5. cxd5 {[%emt 0:01:50]} exd5 {[%emt 0:00:06]} 6. Bg5 {[%emt 0:00:09] D37: Queen's Gambit Declined: 5 Bf4.} Be6 {[%emt 0:00:15]} 7. e3 {[%emt 0:00:24]} Nbd7 {[%emt 0:00:05]} 8. Bd3 {[%emt 0:00:11] White has an edge.} Bd6 {[%emt 0:01:44]} 9. Bf4 {[%emt 0:00:17]} Bxf4 {[%emt 0:01:18]} 10. exf4 {[%emt 0:00:10] Threatens to win with f5.} Bg4 {[%emt 0:00:03]} 11. Qe2+ {[%emt 0:27:26]} Kf8 $1 {[%emt 0:00:03]} 12. O-O {[%emt 0:01:13]} c6 {[%emt 0:02:56] [#]} 13. h3 $146 {[%emt 0:02:41]} ({Predecessor:} 13. Rfe1 g6 14. h3 Bxf3 15. Qxf3 Qb6 16. Ne2 Kg7 17. f5 Rae8 18. b3 Re7 19. fxg6 hxg6 {1-0 (52) Erigaisi,A (2627)-Vidit,S (2727) Kolkata 2021}) 13... Bxf3 {[%emt 0:00:09]} 14. Qxf3 {[%emt 0:00:07]} Qb6 {[%emt 0:07:21][%csl LRb2,LRd4]} 15. Ne2 {[%emt 0:05:39]} Re8 {[%emt 0:07:11]} 16. f5 {[%emt 0:01:03]} Qc7 {[%emt 0:04:55]} (16... Qxb2 17. Rfb1 Qa3 18. Rxb7 $14) 17. Rac1 {[%emt 0:05:56]} Qd6 {[%emt 0:06:28]} 18. Rfe1 {[%emt 0:02:52]} g5 {[%emt 0:08:56]} 19. fxg6 {[%emt 0:04:07]} hxg6 {[%emt 0:00:02]} 20. Nf4 {[%emt 0:00:21][%cal Od3g6]} Kg7 {[%emt 0:13:22]} 21. Bxg6 {[%emt 0:11:07]} Rxe1+ {[%emt 0:08:26]} (21... fxg6 $5 22. Qg3 Rxe1+ 23. Rxe1 Re8 24. Qxg6+ Kf8 25. Qh6+ Kf7 26. Qg6+ Kf8 27. Qh6+ Kf7 28. Qg6+ Kf8 $11) 22. Rxe1 {[%emt 0:00:08]} Rh4 {[%emt 0:00:20]} 23. g4 $1 {[%emt 0:02:56]} fxg6 {[%emt 0:01:35][%cal Bf7g6,Bg6g5,Bg5h4][%mdl 32]} 24. Qg3 {[%emt 0:15:59]} (24. Ne6+ $1 $11 Kg8 25. Ng5) 24... Kf7 $1 $17 {[%emt 0:00:45] Hoping for ...Rh7. White is now going downhill.} 25. Re6 {[%emt 0:01:05] [#]} (25. Qxh4 $17 Qxf4 26. Qg3 Qxg3+ 27. fxg3) 25... Qb8 $1 $19 {[%emt 0:17:19]} 26. Qe3 {[%emt 0:02:19] Re7+ would kill now.} (26. Qxh4 Qxf4) 26... Qd8 {[%emt 0:05:57] Against Re7+. aiming for ...g5.} 27. Rd6 {[%emt 0:01:06] [#]} (27. Re7+ $142 Qxe7 28. Qxe7+ Kxe7 29. Nxg6+ Ke6 30. Nxh4) 27... Ne4 $1 {[%emt 0:01:05] ...g5 is the strong threat.} 28. Re6 {[%emt 0:11:02]} ({Not} 28. Rxg6 $2 Nf8 29. f3 Nxg6 $19) 28... g5 {[%emt 0:03:11]} 29. Rxe4 {[%emt 0:00:06]} dxe4 {[%emt 0:00:28] Really sharp!} 30. Qb3+ {[%emt 0:00:02]} Ke8 {[%emt 0:00:13]} 31. Ng6 {[%emt 0:00:08] White wants to mate with Qe6+.} Qf6 {[%emt 0:01:37][%csl LRd4,LRg6] Prevents Qe6+.} 32. Nxh4 {[%emt 0:00:08]} gxh4 {[%emt 0:00:01]} 33. Qxb7 $2 {[%emt 0:00:06] [#]} (33. d5 {nothing else works.}) 33... e3 $1 {[%emt 0:00:59]} 34. fxe3 {[%emt 0:00:54]} Qf3 {[%emt 0:00:03][%csl LRe3,LRh3]} 35. Qxa6 {[%emt 0:00:16]} (35. Qc7 $19 Qxe3+ 36. Kg2 Qe4+ 37. Kf2) 35... Qxe3+ {[%emt 0:01:05]} 36. Kf1 {[%emt 0:00:06]} Qxh3+ {[%emt 0:00:08]} 37. Ke1 {[%emt 0:00:39]} Qg3+ {[%emt 0:02:53]} 38. Kf1 {[%emt 0:00:05]} Qf3+ {[%emt 0:00:15] Black mates.} 39. Ke1 {[%emt 0:00:18]} h3 {[%emt 0:00:14]} 40. Qc8+ {[%emt 0:00:00]} Ke7 {[%emt 0:00:00]} 41. Qh8 {[%emt 0:00:11]} Qe4+ {[%emt 0:00:51]} 42. Kf2 {[%emt 0:00:49]} Qg2+ {[%emt 0:00:18]} 43. Ke3 {[%emt 0:00:04]} h2 {[%emt 0:00:25]} 44. Qh7+ {[%emt 0:00:07]} Kd8 {[%emt 0:00:06] Weighted Error Value: White=0.59/Black=0.03 (flawless)} 0-1

[Event "2nd Serbia Open Masters 2022"]
[Site "Novi Sad"]
[Date "2022.07.02"]
[Round "5.19"]
[White "Ceres, Dragos"]
[Black "Muradli, Mahammad"]
[Result "0-1"]
[ECO "B22"]
[WhiteElo "2380"]
[BlackElo "2539"]
[Annotator "TA"]
[PlyCount "86"]
[EventDate "2022.06.28"]
[EventType "swiss"]
[EventCountry "SRB"]
[SourceTitle "playchess.com"]
[Source "ChessBase"]
[SourceQuality "1"]
[TimeControl "40/5400+30:900+30"]

{[%evp 15,86,0,3,-20,81,-20,-31,-29,-19,-29,-26,-30,-22,-36,-46,-51,-56,-33,-31,-49,-31,-45,-41,-46,-47,-50,-40,-91,-93,-91,-72,-74,-72,-116,-119,-115,-108,-108,-110,-106,-112,-106,-100,-128,-142,-142,-144,-185,-175,-221,-221,-218,-218,-271,-270,-275,-275,-275,-275,-275,-267,-298,-298,-343,-327,-327,-320,-396,-391,-396,-378,-478,-444]} 1. e4 {[%emt 0:00:02][%cal Be2e4,Be4e5][%mdl 32]} c5 {[%emt 0:07:50]} 2. c3 {[%emt 0:00:15]} Nf6 {[%emt 0:00:04][%cal Bg8f6,Bf6d5,Bd5b4,Bb4a6][%mdl 32]} 3. e5 {[%emt 0:00:05]} Nd5 {[%emt 0:00:07]} 4. d4 {[%emt 0:00:06]} cxd4 {[%emt 0:00:09]} 5. Nf3 {[%emt 0:00:11]} d6 {[%emt 0:00:03]} 6. cxd4 {[%emt 0:00:08]} Nc6 {[%emt 0:00:05]} 7. Bc4 {[%emt 0:00:09]} dxe5 $1 {[%emt 0:00:05][%mdl 4] is currently scoring better than 7...Nb6.} 8. dxe5 {[%emt 0:01:47]} Ndb4 {[%emt 0:01:30]} 9. a3 {[%emt 0:20:44] [#] And now Qxd8+ would win. B22: Sicilian: 2 c3.} Qxd1+ {[%emt 0:02:00]} 10. Kxd1 {[%emt 0:00:05]} Na6 {[%emt 0:00:20]} 11. h3 {[%emt 0:01:51] Black is slightly better.} Bf5 {[%emt 0:02:42]} 12. Be3 {[%emt 0:05:17] [#]} Nc7 $146 {[%emt 0:03:58]} ({Predecessor:} 12... e6 13. Nbd2 Nc5 14. Ke2 O-O-O 15. Rhc1 Kb8 16. Bxc5 Bxc5 17. Nb3 Bb6 18. Rd1 h6 19. Rac1 Bc7 20. Nc5 Rxd1 21. Rxd1 Rd8 22. Rxd8+ {½-½ (22) Braun,G (2318)-Schoene,M (2198) Germany 2009}) 13. Nc3 {[%emt 0:04:47]} g6 {[%emt 0:01:23]} 14. Nb5 {[%emt 0:09:28]} Nxb5 {[%emt 0:07:00]} 15. Bxb5 {[%emt 0:03:40]} Be4 {[%emt 0:00:10][%cal Bf5e4,Be4c6,Bc6a4,Ba4b5,Bb5c4,Bc4b3][%mdl 32]} 16. Ke2 {[%emt 0:05:08]} Bg7 {[%emt 0:03:06]} 17. Rhd1 {[%emt 0:10:08]} a6 {[%emt 0:05:29]} 18. Bxc6+ {[%emt 0:05:50]} Bxc6 {[%emt 0:00:53]} 19. Bd4 {[%emt 0:00:09]} O-O {[%emt 0:05:52]} 20. Bc3 {[%emt 0:01:42]} Rac8 {[%emt 0:08:12]} 21. Ne1 {[%emt 0:02:12]} (21. Kf1 $15) 21... Ba4 $17 {[%emt 0:06:55]} 22. Rd2 {[%emt 0:01:48]} Bh6 {[%emt 0:00:08]} 23. Rd4 {[%emt 0:00:24]} Bb5+ {[%emt 0:00:21]} 24. Kf3 {[%emt 0:07:39]} f6 $36 {[%emt 0:00:20][%mdl 2048] Black is on the roll.} 25. e6 {[%emt 0:19:25]} Rc6 {[%emt 0:02:27]} 26. a4 {[%emt 0:00:00]} Bc4 {[%emt 0:00:06]} 27. Nc2 {[%emt 0:00:00]} Rfc8 {[%emt 0:01:56]} 28. Re1 {[%emt 0:00:00]} Bb3 {[%emt 0:00:27] A strong pair of Bishops.} ({Much worse is} 28... Bxe6 $6 29. Nb4 $15) 29. Nb4 {[%emt 0:00:00]} Rxe6 {[%emt 0:00:06]} 30. Rxe6 {[%emt 0:00:00]} Bxe6 {[%emt 0:00:08]} 31. Re4 {[%emt 0:00:00]} Kf7 {[%emt 0:00:12] [#] Strongly threatening ...a5.} 32. Rh4 {[%emt 0:00:00]} (32. a5 {was called for.}) 32... Bg7 $19 {[%emt 0:01:23]} ({And not} 32... Kg7 33. a5) 33. Rxh7 {[%emt 0:00:00]} g5 {[%emt 0:00:44][%cal Bg6g5,Bg5g4][%mdl 32]} 34. h4 {[%emt 0:00:00]} g4+ {[%emt 0:00:10]} 35. Ke3 {[%emt 0:00:00]} Kg6 {[%emt 0:00:14]} 36. Rxg7+ {[%emt 0:00:00]} Kxg7 {[%emt 0:00:08][%mdl 4096] Endgame KRB-KBN} 37. a5 {[%emt 0:00:00]} Bf7 {[%emt 0:01:23]} 38. Nd3 {[%emt 0:00:00]} e5 {[%emt 0:00:22]} 39. g3 {[%emt 0:01:50]} Bc4 {[%emt 0:00:51]} 40. Ne1 {[%emt 0:00:00]} Kg6 {[%emt 0:00:00]} 41. Kd2 {[%emt 0:04:56]} Rd8+ {[%emt 0:00:59]} 42. Ke3 {[%emt 0:00:46]} Kf5 {[%emt 0:00:24]} 43. Bd2 {[%emt 0:01:09]} Rd4 {[%emt 0:00:24] Weighted Error Value: White=0.19 (very precise) /Black=0.03 (flawless)} 0-1

[Event "2nd Serbia Open Masters 2022"]
[Site "Novi Sad"]
[Date "2022.07.02"]
[Round "5.20"]
[White "Santiago, Yago De Moura"]
[Black "Shahil Dey"]
[Result "1/2-1/2"]
[ECO "E07"]
[WhiteElo "2498"]
[BlackElo "2369"]
[Annotator "TA"]
[PlyCount "53"]
[EventDate "2022.06.28"]
[EventType "swiss"]
[EventCountry "SRB"]
[SourceTitle "playchess.com"]
[Source "ChessBase"]
[SourceQuality "1"]
[TimeControl "40/5400+30:900+30"]

{[%evp 18,53,20,0,6,0,0,-4,0,-22,-14,-15,-17,-20,-20,-20,-28,-12,-12,-22,-22,-21,-28,-29,0,-13,0,0,0,-2,-14,-9,0,0,0,0,0,-200]} 1. d4 {[%emt 0:01:47]} d5 {[%emt 0:00:06]} 2. c4 {[%emt 0:00:09]} c6 {[%emt 0:00:05]} 3. Nf3 {[%emt 0:00:28]} Nf6 {[%emt 0:00:08]} 4. Nc3 {[%emt 0:00:09]} e6 {[%emt 0:00:06]} 5. g3 {[%emt 0:00:49]} Nbd7 {[%emt 0:00:18]} 6. Bg2 {[%emt 0:05:12]} Be7 {[%emt 0:00:11]} 7. O-O {[%emt 0:00:57]} O-O {[%emt 0:00:07]} 8. b3 {[%emt 0:16:01]} b6 {[%emt 0:02:16]} 9. Bb2 {[%emt 0:00:14]} Bb7 {[%emt 0:04:01] 9...Ba6 deserves study.} 10. Nd2 {[%emt 0:00:51]} c5 {[%emt 0:04:49] E07: Closed Catalan: Main Line (5 Nf3 0-0 6 0-0 Nbd7).} 11. dxc5 {[%emt 0:09:59]} Nxc5 {[%emt 0:02:07]} 12. cxd5 {[%emt 0:00:28]} Nxd5 {[%emt 0:02:14]} 13. Nce4 {[%emt 0:00:09]} Nxe4 {[%emt 0:10:18]} 14. Nxe4 {[%emt 0:00:12] [#]} f5 $146 {[%emt 0:01:00]} ({Predecessor:} 14... Rc8 15. Qd4 f6 16. Rfd1 Rc2 17. Rd2 Qc8 18. Bh3 Rd8 19. Rxc2 Qxc2 20. Bxe6+ Kf8 {0-1 (29) Ferrara,A (2185)-Lauridsen,J (2257) Villa Martelli 1999}) 15. Nc3 {[%emt 0:25:51]} ({Wrong is} 15. Qd4 $2 Rf7 16. Bh3 Qd7 $19) 15... Nxc3 {[%emt 0:04:31]} 16. Bxc3 {[%emt 0:00:05]} Bxg2 {[%emt 0:00:13]} 17. Kxg2 {[%emt 0:00:05]} Rc8 {[%emt 0:04:13]} 18. Qd4 {[%emt 0:06:43]} Qxd4 {[%emt 0:01:53]} 19. Bxd4 {[%emt 0:00:07]} Rfd8 {[%emt 0:00:58]} 20. Rfd1 {[%emt 0:02:09]} Kf7 {[%emt 0:08:21]} 21. a4 {[%emt 0:01:18] The position is equal.} Bf6 {[%emt 0:02:46]} 22. Bxf6 {[%emt 0:00:08]} Kxf6 {[%emt 0:00:04]} 23. a5 {[%emt 0:16:21]} Rxd1 {[%emt 0:00:32]} 24. Rxd1 {[%emt 0:00:02]} bxa5 {[%emt 0:02:05]} 25. Rd7 {[%emt 0:00:32]} a6 {[%emt 0:02:07]} 26. Rd6 {[%emt 0:00:16]} Rb8 {[%emt 0:02:40]} 27. Kf3 $2 {[%emt 0:12:58] Weighted Error Value: White=0.06 (flawless) /Black=0.03 (flawless)} (27. Rxa6 $11 {and White is okay.} Rb5 28. h4) 1/2-1/2